bitfinex/quotes_BTCUSD_20240905
["timestamp","ask_amount","ask_price","bid_price","bid_amount"]
[1725562111666,0.529477,56747.0,56746.0,0.016]
[1725562112555,0.177036,56747.0,56746.0,0.016]
[1725562113187,0.661777,56747.0,56746.0,0.016]
[1725562114705,0.57751765,56747.0,56746.0,0.016]
[1725562115137,1.09075865,56747.0,56746.0,0.016]
[1725562115355,1.44319965,56747.0,56746.0,0.016]
[1725562117545,1.44319965,56747.0,56746.0,0.007]
[1725562117715,0.52869,56744.0,56743.0,0.00163]
[1725562118024,0.88115,56744.0,56743.0,0.00163]
[1725562119656,0.88115,56744.0,56743.0,0.00263]
[1725562120040,0.176254,56736.0,56735.0,0.03405999]
[1725562120251,0.661163,56736.0,56735.0,0.03405999]
[1725562120589,0.661163,56736.0,56729.0,0.176276]
[1725562120590,0.352531,56733.0,56729.0,0.176276]
[1725562120787,0.352531,56733.0,56728.0,0.176278]
[1725562120788,0.176268,56732.0,56728.0,0.176278]
[1725562121448,0.2752102,56733.0,56728.0,0.176278]
[1725562121868,0.176265,56733.0,56730.0,0.176271]
[1725562122080,0.352517,56735.0,56730.0,0.176271]
[1725562122500,0.176265,56733.0,56729.0,0.176276]
[1725562122913,0.352523,56734.0,56728.0,0.365558]
[1725562123119,0.352517,56735.0,56728.0,0.365558]
[1725562123392,0.176261,56734.0,56730.0,0.014]
[1725562123583,0.176261,56734.0,56731.0,0.176269]
[1725562123792,0.176261,56734.0,56730.0,0.176272]
[1725562124225,0.176261,56734.0,56730.0,0.186272]
[1725562124437,0.176261,56734.0,56730.0,0.01]
[1725562124870,0.176258,56735.0,56731.0,0.176269]
[1725562125072,0.1324,56736.0,56732.0,0.176266]
[1725562125073,0.308655,56736.0,56732.0,0.176266]
[1725562125282,0.484911,56736.0,56731.0,0.17627]
[1725562125504,0.176258,56735.0,56730.0,0.011]
[1725562125735,0.176255,56736.0,56732.0,0.176266]
[1725562127435,0.176255,56736.0,56732.0,0.186266]
[1725562127864,0.176255,56736.0,56732.0,0.194266]
[1725562128272,0.75856201,56738.0,56734.0,0.17626]
[1725562128273,0.176252,56737.0,56734.0,0.17626]
[1725562128480,0.176252,56737.0,56733.0,0.176263]
[1725562129427,0.176252,56737.0,56734.0,0.009]
[1725562129668,0.176252,56737.0,56733.0,0.176263]
[1725562130014,0.176252,56737.0,56733.0,0.185263]
[1725562130223,0.176252,56737.0,56734.0,0.176261]
[1725562130423,0.1324,56738.0,56734.0,0.352522]
[1725562130630,0.176243,56740.0,56736.0,0.176251]
[1725562130889,0.070659,56738.0,56736.0,0.176251]
[1725562131396,0.070659,56738.0,56737.0,0.176251]
[1725562131606,0.070659,56738.0,56736.0,0.176254]
[1725562131811,0.070659,56738.0,56735.0,0.176256]
[1725562132011,0.246908,56738.0,56736.0,0.004]
[1725562132216,0.070659,56738.0,56736.0,0.004]
[1725562132447,0.246908,56738.0,56736.0,0.004]
[1725562132782,0.246908,56738.0,56736.0,0.01]
[1725562132991,0.246908,56738.0,56736.0,0.004]
[1725562133193,0.52057301,56738.0,56736.0,0.004]
[1725562133640,0.52057301,56738.0,56735.0,0.176257]
[1725562133983,0.34432401,56738.0,56736.0,0.184254]
[1725562134202,0.34432401,56738.0,56736.0,0.190254]
[1725562134634,0.34432401,56738.0,56736.0,0.008]
[1725562134635,0.52057301,56738.0,56736.0,0.008]
[1725562135589,0.52057301,56738.0,56735.0,0.182257]
[1725562135798,0.52057301,56738.0,56735.0,0.190257]
[1725562136428,0.52057301,56738.0,56735.0,0.176257]
[1725562136632,0.52057301,56738.0,56736.0,0.006]
[1725562136985,0.246908,56738.0,56736.0,0.014]
[1725562137198,0.070659,56738.0,56737.0,0.176251]
[1725562137440,0.297441,56741.0,56738.0,0.176248]
[1725562137849,0.368096,56741.0,56738.0,0.176248]
[1725562138470,0.368096,56741.0,56738.0,0.16992307]
[1725562139688,0.368096,56741.0,56738.0,0.17392307]
[1725562140762,0.368096,56741.0,56738.0,0.17692307]
[1725562141159,0.176242,56740.0,56738.0,0.17692307]
[1725562141379,0.176242,56740.0,56738.0,0.183248]
[1725562141619,0.368094,56741.0,56738.0,0.183248]
[1725562141981,0.368094,56741.0,56738.0,0.179248]
[1725562141982,0.246894,56741.0,56738.0,0.179248]
[1725562142566,0.24771,56741.0,56738.0,0.185248]
[1725562142784,0.24771,56741.0,56738.0,0.176248]
[1725562143193,0.24771,56741.0,56738.0,0.184248]
[1725562143601,0.176243,56740.0,56738.0,0.004]
[1725562143822,0.071471,56741.0,56738.0,0.180248]
[1725562144022,0.071471,56741.0,56738.0,0.183248]
[1725562144485,0.071471,56741.0,56738.0,0.180248]
[1725562144687,0.176242,56740.0,56738.0,0.004]
[1725562144889,0.176242,56740.0,56738.0,0.008]
[1725562145269,0.176242,56740.0,56738.0,0.004]
[1725562145467,0.247711,56741.0,56738.0,0.186248]
[1725562145887,0.176242,56740.0,56738.0,0.01]
[1725562146095,0.176242,56740.0,56738.0,0.006]
[1725562146334,0.176242,56740.0,56737.0,0.17625]
[1725562146679,0.93471022,56739.0,56738.0,0.007]
[1725562146856,0.93471022,56739.0,56732.0,0.001632]
[1725562146857,0.176255,56736.0,56732.0,0.001632]
[1725562147063,0.176259,56735.0,56732.0,0.177898]
[1725562147974,0.62617401,56736.0,56732.0,0.001632]
[1725562148179,0.88132,56733.0,56732.0,0.009632]
[1725562148378,1.527448,56733.0,56732.0,0.009632]
[1725562148612,2.05114269,56733.0,56732.0,0.009632]
[1725562149046,2.43308349,56733.0,56732.0,0.020632]
[1725562149273,2.43308349,56733.0,56732.0,0.001632]
[1725562149474,2.10662591,56733.0,56732.0,0.001632]
[1725562149683,2.10662591,56733.0,56732.0,0.014632]
[1725562149895,2.10662591,56733.0,56732.0,0.011632]
[1725562150183,2.10662591,56733.0,56732.0,0.001632]
[1725562150379,2.16241848,56733.0,56732.0,0.003632]
[1725562150584,2.10962591,56733.0,56732.0,0.003632]
[1725562150807,2.10762591,56733.0,56732.0,0.002632]
[1725562151238,2.10962591,56733.0,56732.0,0.003632]
[1725562151702,2.10862591,56733.0,56732.0,0.002632]
[1725562151917,2.10962591,56733.0,56732.0,0.003632]
[1725562152333,2.46115391,56733.0,56732.0,0.002632]
[1725562152536,2.40867069,56733.0,56732.0,0.003632]
[1725562152947,2.40667069,56733.0,56732.0,0.002632]
[1725562153170,2.368504,56733.0,56732.0,0.002632]
[1725562153401,2.41000899,56733.0,56732.0,0.003632]
[1725562154581,2.371504,56733.0,56732.0,0.003632]
[1725562155669,2.006976,56733.0,56732.0,0.003632]
[1725562157705,1.840176,56733.0,56732.0,0.003632]
[1725562158399,1.487648,56733.0,56732.0,0.003632]
[1725562158641,1.464648,56733.0,56732.0,0.003632]
[1725562159343,1.463648,56733.0,56732.0,0.002632]
[1725562159766,1.464648,56733.0,56732.0,0.003632]
[1725562159968,1.484648,56733.0,56732.0,0.002632]
[1725562160172,1.486648,56733.0,56732.0,0.003632]
[1725562160611,0.103,56733.0,56732.0,0.003632]
[1725562160824,0.279264,56733.0,56732.0,0.003632]
[1725562161266,0.629792,56733.0,56732.0,0.002632]
[1725562161464,0.630792,56733.0,56732.0,0.002632]
[1725562162801,0.628792,56733.0,56732.0,0.001632]
[1725562163257,0.98232,56733.0,56732.0,0.001632]
[1725562163475,1.357848,56733.0,56732.0,0.001632]
[1725562163894,1.710376,56733.0,56732.0,0.001632]
[1725562164105,1.94950417,56733.0,56732.0,0.001632]
[1725562164339,1.95150417,56733.0,56732.0,0.001632]
[1725562164563,2.42783103,56733.0,56732.0,0.001632]
[1725562164785,2.15416602,56733.0,56732.0,0.001632]
[1725562165453,2.15417545,56733.0,56732.0,0.001632]
[1725562166390,2.45322023,56733.0,56732.0,0.001632]
[1725562166820,2.40227528,56733.0,56732.0,0.001632]
[1725562167919,2.03774728,56733.0,56732.0,0.001632]
[1725562168510,1.984976,56733.0,56732.0,0.001632]
[1725562170363,1.994976,56733.0,56732.0,0.001632]
[1725562170499,1.845076,56733.0,56732.0,0.001632]
[1725562171298,1.915759,56733.0,56732.0,0.001632]
[1725562171705,1.781059,56733.0,56732.0,0.001632]
[1725562171923,1.781059,56733.0,56732.0,0.128132]
[1725562172214,1.428531,56733.0,56732.0,0.128132]
[1725562172425,1.70219601,56733.0,56732.0,0.284532]
[1725562175511,1.34966801,56733.0,56732.0,0.284532]
[1725562175704,1.70219601,56733.0,56732.0,0.284532]
[1725562176835,1.80739601,56733.0,56732.0,0.001632]
[1725562177333,1.70219601,56733.0,56732.0,0.001632]
[1725562182567,1.74063166,56733.0,56732.0,0.001632]
[1725562182777,2.09315966,56733.0,56732.0,0.001632]
[1725562185622,2.05472401,56733.0,56732.0,0.001632]
[1725562189683,2.09318213,56733.0,56732.0,0.001632]
[1725562190088,2.20038213,56733.0,56732.0,0.001632]
[1725562190299,2.26132708,56733.0,56732.0,0.001632]
[1725562190504,2.34051445,56733.0,56732.0,0.001632]
[1725562190715,2.36691024,56733.0,56732.0,0.001632]
[1725562190920,2.26132708,56733.0,56732.0,0.001632]
[1725562191126,2.09318213,56733.0,56732.0,0.115232]
[1725562191543,2.09318213,56733.0,56732.0,0.266432]
[1725562193490,2.17249735,56733.0,56732.0,0.266432]
[1725562193738,2.09318213,56733.0,56732.0,0.266432]
[1725562193951,2.22537417,56733.0,56732.0,0.001632]
[1725562196359,2.09318213,56733.0,56732.0,0.001632]
[1725562196758,2.22537417,56733.0,56732.0,0.001632]
[1725562196962,2.09318213,56733.0,56732.0,0.001632]
[1725562197268,2.22537417,56733.0,56732.0,0.001632]
[1725562197485,2.09318213,56733.0,56732.0,0.001632]
[1725562197741,2.22548755,56733.0,56732.0,0.001632]
[1725562197947,2.09318213,56733.0,56732.0,0.001632]
[1725562198335,2.19902414,56733.0,56732.0,0.001632]
[1725562198485,2.19902561,56733.0,56732.0,0.001632]
[1725562199104,2.09318213,56733.0,56732.0,0.001632]
[1725562199685,2.19902845,56733.0,56732.0,0.001632]
[1725562199949,2.22548755,56733.0,56732.0,0.001632]
[1725562200794,2.19902795,56733.0,56732.0,0.001632]
[1725562201855,2.09318213,56733.0,56732.0,0.001632]
[1725562202054,2.19902787,56733.0,56732.0,0.001632]
[1725562202259,2.09318213,56733.0,56732.0,0.001632]
[1725562202535,2.19902343,56733.0,56732.0,0.001632]
[1725562202981,2.09318213,56733.0,56732.0,0.001632]
[1725562203188,2.22548931,56733.0,56732.0,0.001632]
[1725562204172,2.09318213,56733.0,56732.0,0.001632]
[1725562205031,2.09318213,56733.0,56732.0,0.257132]
[1725562205032,0.69185295,56733.0,56732.0,0.257132]
[1725562205257,0.001,56733.0,56732.0,0.785933]
[1725562205479,0.001,56733.0,56732.0,1.138467]
[1725562205867,0.000816,56738.0,56737.0,1.136757]
[1725562206073,0.000816,56738.0,56737.0,1.48926]
[1725562206833,0.000816,56741.0,56733.0,0.29019862]
[1725562206834,0.000816,56741.0,56740.0,1.233697]
[1725562207084,0.000816,56741.0,56740.0,1.494997]
[1725562209313,0.000816,56741.0,56740.0,1.508997]
[1725562209950,0.000816,56741.0,56740.0,1.520997]
[1725562210861,0.000816,56741.0,56740.0,1.168512]
[1725562212908,0.000816,56741.0,56740.0,1.520997]
[1725562213144,0.000816,56741.0,56740.0,1.168512]
[1725562214651,0.000816,56741.0,56740.0,1.520997]
[1725562218600,0.000816,56741.0,56740.0,1.873482]
[1725562219039,0.000816,56741.0,56740.0,1.875482]
[1725562219253,0.000816,56741.0,56740.0,1.873482]
[1725562219677,0.000816,56741.0,56740.0,1.520997]
[1725562222753,0.176196,56755.0,56752.0,0.176202]
[1725562222754,0.01843217,56755.0,56752.0,0.176202]
[1725562222956,0.52650515,56754.0,56753.0,0.2582]
[1725562223181,0.19462817,56755.0,56753.0,0.2582]
[1725562223715,0.453196,56758.0,56753.0,0.2582]
[1725562223940,0.176197,56755.0,56753.0,0.2582]
[1725562224633,0.005,56755.0,56753.0,0.2582]
[1725562225070,0.004,56755.0,56753.0,0.2582]
[1725562225282,0.007,56755.0,56753.0,0.2582]
[1725562226176,0.184012,56755.0,56753.0,0.2582]
[1725562226389,0.28148101,56755.0,56748.0,0.2472]
[1725562226615,0.27366501,56751.0,56748.0,0.2472]
[1725562226831,0.44987401,56751.0,56748.0,0.2472]
[1725562227748,0.63187501,56755.0,56748.0,0.2472]
[1725562227957,0.176202,56753.0,56750.0,0.17621]
[1725562228798,0.35521,56755.0,56750.0,0.17621]
[1725562229003,0.176202,56753.0,56750.0,0.17621]
[1725562229222,0.177202,56753.0,56750.0,0.17621]
[1725562230412,0.176202,56753.0,56750.0,0.17621]
[1725562231044,0.176199,56754.0,56750.0,0.17621]
[1725562231461,0.001,56753.0,56750.0,0.17621]
[1725562231967,0.1762,56754.0,56751.0,0.176206]
[1725562232210,0.000816,56755.0,56754.0,0.638597]
[1725562232415,0.000816,56755.0,56754.0,1.483993]
[1725562234841,0.000816,56755.0,56754.0,1.497993]
[1725562235464,0.002816,56755.0,56754.0,1.497993]
[1725562235940,0.000816,56755.0,56754.0,1.497993]
[1725562236167,0.000816,56755.0,56754.0,1.145595]
[1725562236381,0.000816,56755.0,56754.0,1.158595]
[1725562237286,0.000816,56755.0,56754.0,1.510993]
[1725562238885,0.000816,56755.0,56754.0,1.863391]
[1725562239090,0.000816,56755.0,56754.0,2.40129996]
[1725562239531,0.000816,56755.0,56754.0,2.04890196]
[1725562239720,0.000816,56755.0,56754.0,2.05090196]
[1725562241680,0.000816,56755.0,56754.0,2.40329996]
[1725562242329,0.000816,56755.0,56754.0,2.05090196]
[1725562243020,0.50906343,56765.0,56764.0,0.73003201]
[1725562243217,0.50906343,56765.0,56764.0,1.43654796]
[1725562243483,0.50906343,56765.0,56764.0,2.49355296]
[1725562243716,0.50906343,56765.0,56764.0,2.49555296]
[1725562243929,0.50906343,56765.0,56764.0,2.14321796]
[1725562244148,0.50906343,56765.0,56764.0,2.15321796]
[1725562244374,0.50906343,56765.0,56764.0,2.16921796]
[1725562245241,0.50906343,56765.0,56764.0,2.15921796]
[1725562245447,0.50906343,56765.0,56764.0,1.609372]
[1725562245627,0.50906343,56765.0,56764.0,1.611372]
[1725562245869,0.50906343,56765.0,56764.0,1.973707]
[1725562246085,0.50906343,56765.0,56764.0,1.621372]
[1725562247582,0.50906343,56765.0,56764.0,1.609372]
[1725562248247,0.50906343,56765.0,56764.0,1.619372]
[1725562250230,0.50987943,56765.0,56764.0,1.619372]
[1725562250938,0.50987943,56765.0,56764.0,2.16921796]
[1725562251148,0.50987943,56765.0,56764.0,2.16721796]
[1725562252022,0.50987943,56765.0,56764.0,2.16921796]
[1725562252238,0.50987943,56765.0,56764.0,2.15721796]
[1725562252455,0.50987943,56765.0,56764.0,2.14721796]
[1725562252879,0.50987943,56765.0,56764.0,2.13721796]
[1725562253187,0.50987943,56765.0,56764.0,1.971707]
[1725562255057,0.50987943,56765.0,56764.0,1.973707]
[1725562255260,0.50987943,56765.0,56764.0,1.971707]
[1725562256292,0.50987943,56765.0,56764.0,2.14721796]
[1725562256512,0.50987943,56765.0,56764.0,2.16921796]
[1725562256964,0.50987943,56765.0,56764.0,2.52155296]
[1725562257182,0.50987943,56765.0,56764.0,2.16921796]
[1725562257607,0.50987943,56765.0,56764.0,2.52155296]
[1725562257814,0.50987943,56765.0,56764.0,2.16921796]
[1725562258932,0.50987943,56765.0,56764.0,2.52155296]
[1725562259194,0.43941343,56765.0,56764.0,2.87388796]
[1725562259411,0.00082,56782.0,56770.0,1.863541]
[1725562259412,0.16963388,56771.0,56770.0,1.863541]
[1725562259623,0.16963388,56771.0,56770.0,2.89256208]
[1725562259826,0.00082,56782.0,56770.0,2.89256208]
[1725562259827,0.50263969,56772.0,56771.0,1.511222]
[1725562260045,0.50263969,56772.0,56771.0,2.51431696]
[1725562260506,0.00082,56792.0,56791.0,1.596756]
[1725562260809,0.00082,56792.0,56791.0,2.65719997]
[1725562261012,0.09586473,56817.0,56815.0,1.232066]
[1725562261013,0.49658057,56816.0,56815.0,1.232066]
[1725562261257,0.49658057,56816.0,56815.0,1.40757696]
[1725562261505,0.49658057,56816.0,56815.0,1.232066]
[1725562263626,0.65908793,56816.0,56815.0,0.555028]
[1725562263872,0.65908793,56816.0,56815.0,0.893047]
[1725562264108,0.65908793,56816.0,56815.0,0.541028]
[1725562264343,0.65908793,56816.0,56815.0,0.190009]
[1725562265051,0.60878057,56816.0,56815.0,0.190009]
[1725562265286,0.60878057,56816.0,56815.0,0.542028]
[1725562265511,0.60878057,56816.0,56815.0,0.556028]
[1725562265978,0.60878057,56816.0,56815.0,0.908047]
[1725562266213,0.60878057,56816.0,56815.0,0.556028]
[1725562267795,0.60878057,56816.0,56815.0,0.908047]
[1725562268687,0.60878057,56816.0,56815.0,0.556028]
[1725562269336,0.60878057,56816.0,56815.0,0.908047]
[1725562270898,0.60878057,56816.0,56815.0,0.556028]
[1725562271144,0.60878057,56816.0,56815.0,0.908047]
[1725562271987,0.49658057,56816.0,56815.0,0.908047]
[1725562272196,0.49658057,56816.0,56815.0,1.260066]
[1725562274501,0.49739557,56816.0,56815.0,1.260066]
[1725562274950,0.49718373,56816.0,56815.0,1.260066]
[1725562275181,0.49718373,56816.0,56815.0,0.908047]
[1725562275406,0.49718373,56816.0,56815.0,0.556028]
[1725562275842,0.49718373,56816.0,56815.0,0.204009]
[1725562276056,0.49718373,56816.0,56815.0,0.556028]
[1725562276539,0.49718373,56816.0,56815.0,0.028]
[1725562276773,0.81098973,56816.0,56815.0,0.028]
[1725562276973,0.63498373,56816.0,56815.0,0.028]
[1725562277408,0.63498373,56816.0,56815.0,0.014]
[1725562277647,0.63498373,56816.0,56814.0,0.176012]
[1725562277860,1.62721573,56816.0,56815.0,0.023]
[1725562278095,2.27589374,56816.0,56815.0,0.023]
[1725562278312,2.72790674,56816.0,56815.0,0.023]
[1725562278555,2.72790674,56816.0,56796.0,0.52650515]
[1725562278556,0.1352,56811.0,56796.0,0.52650515]
[1725562278771,0.1352,56811.0,56796.0,0.70257215]
[1725562278994,0.17605,56802.0,56796.0,0.176067]
[1725562279219,0.17605,56802.0,56795.0,0.04945271]
[1725562279220,0.1352,56808.0,56797.0,0.176063]
[1725562279440,0.023,56807.0,56795.0,0.04945271]
[1725562279664,0.1352,56808.0,56795.0,0.04945271]
[1725562279665,0.1352,56808.0,56801.0,0.176051]
[1725562279881,0.1352,56808.0,56795.0,0.32311772]
[1725562279882,0.1352,56808.0,56795.0,0.04945271]
[1725562280136,0.1352,56808.0,56796.0,0.00352108]
[1725562280573,0.1352,56808.0,56804.0,0.176042]
[1725562280989,0.1352,56808.0,56802.0,0.352094]
[1725562281219,0.1352,56808.0,56795.0,0.33711772]
[1725562281220,0.023,56807.0,56796.0,0.352132]
[1725562281457,0.176054,56801.0,56795.0,0.06345271]
[1725562281672,0.27366501,56799.0,56796.0,0.013]
[1725562282131,0.249,56802.0,56796.0,0.013]
[1725562282354,0.1369,56799.0,56796.0,0.013]
[1725562282579,0.1369,56799.0,56796.0,0.016]
[1725562283005,0.1369,56799.0,56796.0,0.003]
[1725562283222,0.01843197,56798.0,56796.0,0.003]
[1725562283661,0.01843197,56798.0,56796.0,0.179067]
[1725562283879,0.01843197,56798.0,56796.0,0.176067]
[1725562284096,0.01843197,56798.0,56796.0,0.003]
[1725562284350,0.01843197,56798.0,56797.0,0.528196]
[1725562284525,0.01843197,56798.0,56797.0,0.176065]
[1725562284993,0.01843197,56798.0,56797.0,0.528196]
[1725562285215,0.01843197,56798.0,56797.0,0.176065]
[1725562285840,0.01943197,56798.0,56796.0,0.012]
[1725562286086,0.01943197,56798.0,56796.0,0.007]
[1725562286494,0.01943197,56798.0,56797.0,0.005]
[1725562286909,0.01943197,56798.0,56796.0,0.007]
[1725562287343,0.01843197,56798.0,56796.0,0.005]
[1725562287550,0.01943197,56798.0,56797.0,0.007]
[1725562288433,0.01843197,56798.0,56796.0,0.005]
[1725562288644,0.01943197,56798.0,56796.0,0.012]
[1725562288867,0.01943197,56798.0,56796.0,0.005]
[1725562289116,0.01943197,56798.0,56793.0,0.00163]
[1725562289325,0.02043197,56798.0,56797.0,0.181065]
[1725562289572,0.02043197,56798.0,56797.0,0.186065]
[1725562290008,0.02043197,56798.0,56797.0,0.181065]
[1725562290419,0.01943197,56798.0,56797.0,0.181065]
[1725562290650,0.01843197,56798.0,56797.0,0.176065]
[1725562290853,0.01943197,56798.0,56797.0,0.176065]
[1725562291064,0.01943197,56798.0,56797.0,0.181065]
[1725562291277,0.01943197,56798.0,56797.0,0.533196]
[1725562291533,0.01943197,56798.0,56797.0,0.892327]
[1725562291534,0.02043197,56798.0,56797.0,0.892327]
[1725562291721,0.02043197,56798.0,56797.0,1.244458]
[1725562295026,0.02043197,56798.0,56797.0,0.892327]
[1725562296746,0.02043197,56798.0,56797.0,1.374858]
[1725562297850,0.02043197,56798.0,56797.0,1.376488]
[1725562300523,0.02043197,56798.0,56797.0,2.05122996]
[1725562300524,0.002,56798.0,56797.0,2.05122996]
[1725562300723,0.002,56798.0,56797.0,2.17322996]
[1725562300942,0.002,56798.0,56797.0,2.54184098]
[1725562301400,0.000815,56810.0,56809.0,1.508196]
[1725562301634,0.000815,56810.0,56809.0,2.13391701]
[1725562301869,0.000815,56810.0,56809.0,1.78186101]
[1725562302766,0.001815,56810.0,56809.0,1.79586101]
[1725562303016,0.002815,56810.0,56809.0,1.79286101]
[1725562303469,0.002815,56810.0,56809.0,1.243196]
[1725562304351,0.002815,56810.0,56809.0,1.232196]
[1725562304352,0.001815,56810.0,56809.0,1.232196]
[1725562304563,0.001815,56810.0,56809.0,1.244196]
[1725562304792,0.001815,56810.0,56809.0,1.245196]
[1725562304793,0.000815,56810.0,56809.0,1.245196]
[1725562305040,0.000815,56810.0,56809.0,1.53286101]
[1725562305716,0.000815,56810.0,56809.0,1.67176101]
[1725562306916,0.000815,56810.0,56809.0,1.53286101]
[1725562314822,0.000815,56810.0,56809.0,1.88491701]
[1725562315032,0.000815,56810.0,56809.0,1.70837197]
[1725562315248,0.000815,56810.0,56809.0,2.38612797]
[1725562315457,0.000815,56810.0,56809.0,2.74018397]
[1725562315686,0.000815,56810.0,56809.0,2.38812797]
[1725562316145,0.000815,56810.0,56809.0,2.40176101]
[1725562316388,0.000815,56810.0,56809.0,2.41824059]
[1725562316836,0.000815,56810.0,56809.0,2.4182376]
[1725562317044,0.000815,56810.0,56809.0,2.40176101]
[1725562317479,0.000815,56810.0,56809.0,2.38812797]
[1725562319875,0.000815,56810.0,56809.0,2.38612797]
[1725562320969,0.49718373,56816.0,56815.0,1.232066]
[1725562320970,0.23984827,56816.0,56815.0,1.232066]
[1725562322310,0.24184827,56816.0,56815.0,1.248066]
[1725562323589,0.24084827,56816.0,56815.0,1.239066]
[1725562324023,0.24184827,56816.0,56815.0,1.251066]
[1725562324239,0.24084827,56816.0,56815.0,0.012]
[1725562324463,0.24084827,56816.0,56815.0,0.188009]
[1725562324669,0.24084827,56816.0,56815.0,0.022]
[1725562324670,0.24184827,56816.0,56815.0,0.022]
[1725562324875,0.24184827,56816.0,56815.0,0.198009]
[1725562325312,0.24184827,56816.0,56815.0,0.550028]
[1725562325519,0.24184827,56816.0,56815.0,0.902047]
[1725562328598,0.24184827,56816.0,56815.0,1.254066]
[1725562329242,0.54014827,56816.0,56815.0,0.902047]
[1725562329455,0.54014827,56816.0,56815.0,0.550028]
[1725562329921,0.27420212,56816.0,56815.0,0.550028]
[1725562330356,0.27420212,56816.0,56815.0,0.902047]
[1725562331872,0.27420212,56816.0,56815.0,0.022]
[1725562332940,0.80222112,56816.0,56815.0,0.022]
[1725562333151,1.15423412,56816.0,56815.0,0.022]
[1725562333387,1.15423412,56816.0,56815.0,0.012]
[1725562333634,1.77991213,56816.0,56815.0,0.012]
[1725562333856,0.832475,56810.0,56809.0,0.00163]
[1725562334085,1.81024001,56810.0,56809.0,0.00163]
[1725562334297,1.84324001,56810.0,56809.0,0.00163]
[1725562334560,2.31572092,56810.0,56809.0,0.00163]
[1725562334782,0.880312,56798.0,56797.0,0.00163]
[1725562335039,1.169812,56798.0,56797.0,0.00163]
[1725562335259,0.817687,56798.0,56797.0,0.00163]
[1725562336587,0.817687,56798.0,56797.0,0.00663]
[1725562337527,0.818687,56798.0,56797.0,0.01363]
[1725562339268,0.466562,56798.0,56797.0,0.01363]
[1725562339483,0.2905,56798.0,56797.0,0.01363]
[1725562339713,0.466562,56798.0,56797.0,0.01363]
[1725562339923,0.2905,56798.0,56797.0,0.01363]
[1725562342029,0.466562,56798.0,56797.0,0.01363]
[1725562342469,0.818687,56798.0,56797.0,0.01363]
[1725562342885,1.170812,56798.0,56797.0,0.01363]
[1725562343316,1.18924417,56798.0,56797.0,0.01363]
[1725562343750,0.83711917,56798.0,56797.0,0.01363]
[1725562345586,0.85074917,56798.0,56797.0,0.01363]
[1725562346657,1.20287417,56798.0,56797.0,0.01363]
[1725562346904,0.49862417,56798.0,56797.0,0.01363]
[1725562347123,0.85074917,56798.0,56797.0,0.01363]
[1725562347363,0.49862417,56798.0,56797.0,0.01363]
[1725562348478,0.85074917,56798.0,56797.0,0.01363]
[1725562350739,1.55499917,56798.0,56797.0,0.01363]
[1725562350960,2.04012417,56798.0,56797.0,0.01363]
[1725562351178,2.04012417,56798.0,56775.0,0.176132]
[1725562351179,0.002,56785.0,56778.0,0.52650515]
[1725562351408,0.01,56788.0,56778.0,0.52650515]
[1725562351409,0.93182801,56779.0,56778.0,0.52650515]
[1725562351632,0.93182801,56779.0,56766.0,0.176159]
[1725562351633,0.93182801,56779.0,56768.0,0.176153]
[1725562351634,0.176135,56775.0,56768.0,0.176153]
[1725562351844,0.75570701,56779.0,56763.0,0.1704]
[1725562351845,0.40346501,56779.0,56767.0,0.352311]
[1725562352062,0.176132,56776.0,56767.0,0.352311]
[1725562352288,0.352251,56778.0,56770.0,0.176148]
[1725562352507,0.176127,56777.0,56770.0,0.176148]
[1725562352736,0.1298,56779.0,56766.0,0.40226509]
[1725562353006,0.527811,56784.0,56779.0,0.352242]
[1725562353007,0.1406,56784.0,56779.0,0.352242]
[1725562353222,0.19540125,56788.0,56779.0,0.352242]
[1725562353223,0.1678,56788.0,56779.0,0.352242]
[1725562353438,0.343893,56788.0,56781.0,0.176114]
[1725562353647,0.343893,56788.0,56779.0,0.352242]
[1725562353648,0.343893,56788.0,56782.0,0.176111]
[1725562353862,0.1678,56788.0,56780.0,0.352232]
[1725562354108,0.343894,56788.0,56781.0,0.176114]
[1725562354346,0.343894,56788.0,56780.0,0.352232]
[1725562354347,0.003,56784.0,56782.0,0.176111]
[1725562354798,0.1678,56788.0,56780.0,0.352232]
[1725562355018,0.007,56788.0,56783.0,0.352212]
[1725562355241,0.009,56788.0,56780.0,0.001]
[1725562355474,0.352222,56783.0,56780.0,0.001]
[1725562355665,0.17611,56783.0,56780.0,0.001]
[1725562355877,0.17611,56783.0,56776.0,0.04909728]
[1725562356092,0.3034,56787.0,56776.0,0.04909728]
[1725562356307,0.176103,56785.0,56779.0,0.176119]
[1725562356515,0.176101,56786.0,56779.0,0.176119]
[1725562356956,0.003,56784.0,56780.0,0.176117]
[1725562357166,0.1761,56786.0,56779.0,0.17612]
[1725562357394,0.352199,56786.0,56783.0,0.001]
[1725562357632,0.176105,56785.0,56783.0,0.001]
[1725562357884,0.176105,56785.0,56778.0,0.176124]
[1725562358104,0.004,56784.0,56779.0,0.17712]
[1725562358323,0.004,56784.0,56777.0,0.352251]
[1725562358324,0.004,56784.0,56778.0,0.176124]
[1725562358552,0.01843217,56783.0,56778.0,0.176124]
[1725562358784,0.01843217,56783.0,56777.0,0.352251]
[1725562358785,0.01843217,56783.0,56779.0,0.176121]
[1725562359002,0.01843217,56783.0,56776.0,0.04909728]
[1725562359003,0.01843217,56783.0,56778.0,0.176124]
[1725562359238,0.01843217,56783.0,56780.0,0.001632]
[1725562360841,0.01843217,56783.0,56780.0,0.17775]
[1725562361072,0.02143217,56783.0,56780.0,0.17775]
[1725562361327,0.02143217,56783.0,56780.0,0.001632]
[1725562361328,0.62589501,56781.0,56780.0,0.001632]
[1725562361556,1.17724001,56781.0,56780.0,0.001632]
[1725562361783,1.93827001,56781.0,56780.0,0.001632]
[1725562362018,2.30250001,56781.0,56780.0,0.001632]
[1725562362968,2.30050001,56781.0,56780.0,0.001632]